bitfinex/quotes_BTCUSD_20250303
["timestamp","ask_amount","ask_price","bid_price","bid_amount"]
[1740983917490,0.1865987,92732.0,92731.0,0.31719983]
[1740983918867,0.1885987,92732.0,92731.0,0.31719983]
[1740983919086,0.0410187,92732.0,92731.0,0.31719983]
[1740983919291,0.07282979,92732.0,92731.0,0.31719983]
[1740983919426,0.07682979,92732.0,92731.0,0.31719983]
[1740983919832,0.22240979,92732.0,92731.0,0.31719983]
[1740983920036,0.0450187,92732.0,92731.0,0.31719983]
[1740983920775,0.0410187,92732.0,92729.0,0.0001704]
[1740983921139,0.0450187,92732.0,92729.0,0.0001704]
[1740983921764,0.0490187,92732.0,92729.0,0.0001704]
[1740983922126,0.0410187,92732.0,92729.0,0.0001704]
[1740983922332,0.01988611,92731.0,92729.0,0.0001704]
[1740983923551,0.145583,92730.0,92729.0,0.0001704]
[1740983923757,0.192183,92730.0,92729.0,0.0001704]
[1740983923963,0.06648611,92730.0,92729.0,0.0001704]
[1740983924165,0.21206911,92730.0,92729.0,0.0001704]
[1740983924983,0.21506911,92730.0,92729.0,0.0001704]
[1740983926186,0.29816911,92730.0,92729.0,0.0001704]
[1740983927226,0.29516911,92730.0,92729.0,0.0001704]
[1740983927775,0.30116911,92730.0,92729.0,0.0001704]
[1740983927976,0.29516911,92730.0,92729.0,0.0001704]
[1740983928146,0.31670996,92730.0,92729.0,0.0001704]
[1740983928533,0.30970996,92730.0,92729.0,0.0001704]
[1740983928738,0.31570996,92730.0,92729.0,0.0001704]
[1740983929371,0.31605076,92730.0,92729.0,0.0001704]
[1740983929711,0.61005076,92730.0,92729.0,0.0001704]
[1740983931316,0.70229076,92730.0,92729.0,0.0001704]
[1740983931631,0.70225076,92730.0,92729.0,0.0001704]
[1740983931840,0.69525076,92730.0,92729.0,0.0001704]
[1740983931976,0.24429166,92720.0,92708.0,0.00029108]
[1740983932333,0.145602,92719.0,92708.0,0.00029108]
[1740983932475,0.24429166,92720.0,92708.0,0.00029108]
[1740983932838,0.145603,92718.0,92708.0,0.00029108]
[1740983933256,0.01988611,92719.0,92708.0,0.00029108]
[1740983933429,0.145605,92716.0,92708.0,0.00029108]
[1740983933637,0.0453,92718.0,92708.0,0.00029108]
[1740983933829,0.145604,92717.0,92708.0,0.00029108]
[1740983934532,0.0453,92718.0,92708.0,0.00029108]
[1740983934733,0.145606,92716.0,92708.0,0.00029108]
[1740983935106,0.0453,92718.0,92708.0,0.00029108]
[1740983935308,0.145608,92715.0,92708.0,0.00029108]
[1740983935896,0.15568,92714.0,92708.0,0.00029108]
[1740983937863,0.0220337,92709.0,92708.0,0.00029108]
[1740983938488,0.1676497,92709.0,92708.0,0.00029108]
[1740983938898,0.52969055,92709.0,92708.0,0.00029108]
[1740983939545,0.61009055,92709.0,92708.0,0.00029108]
[1740983939750,0.0220337,92709.0,92708.0,0.00029108]
[1740983941175,0.0250337,92709.0,92708.0,0.00029108]
[1740983941381,0.0220337,92709.0,92708.0,0.00029108]
[1740983941692,0.0250337,92709.0,92708.0,0.00029108]
[1740983942567,0.1706497,92709.0,92708.0,0.00029108]
[1740983943716,0.3011497,92709.0,92708.0,0.00029108]
[1740983943928,0.40009055,92709.0,92708.0,0.00029108]
[1740983945406,0.70009055,92709.0,92708.0,0.00029108]
[1740983946352,0.0250337,92709.0,92708.0,0.00029108]
[1740983946865,0.003,92709.0,92708.0,0.00029108]
[1740983948136,0.09548802,92717.0,92708.0,0.00029108]
[1740983948334,0.003,92709.0,92708.0,0.00029108]
[1740983948743,0.15568,92714.0,92708.0,0.00029108]
[1740983948944,0.001,92709.0,92708.0,0.00029108]
[1740983949144,0.15568,92714.0,92708.0,0.00029108]
[1740983950032,0.001,92709.0,92708.0,0.00029108]
[1740983951280,0.15568,92714.0,92708.0,0.00029108]
[1740983951666,0.15768,92714.0,92708.0,0.00029108]
[1740983952091,0.15568,92714.0,92708.0,0.00029108]
[1740983952289,0.001,92709.0,92708.0,0.00029108]
[1740983952650,0.15568,92714.0,92708.0,0.00029108]
[1740983952883,0.15768,92714.0,92708.0,0.00029108]
[1740983953309,0.15568,92714.0,92708.0,0.00029108]
[1740983954058,0.16015685,92709.0,92708.0,0.00029108]
[1740983954590,0.20565685,92709.0,92708.0,0.00029108]
[1740983954801,0.50665685,92709.0,92708.0,0.00029108]
[1740983955148,0.50565685,92709.0,92708.0,0.00029108]
[1740983955474,0.50865685,92709.0,92708.0,0.00029108]
[1740983955712,0.145629,92701.0,92700.0,0.1536751]
[1740983955904,0.1456691,92701.0,92700.0,0.1536751]
[1740983956306,0.46020995,92701.0,92700.0,0.1536751]
[1740983956860,0.54030995,92701.0,92700.0,0.12982545]
[1740983957045,0.145665,92678.0,92651.0,0.08]
[1740983957241,0.229785,92678.0,92651.0,0.08]
[1740983957454,0.20960585,92678.0,92651.0,0.08]
[1740983957606,0.495065,92678.0,92651.0,0.08]
[1740983957812,0.145675,92672.0,92671.0,0.14535089]
[1740983958022,0.529875,92672.0,92671.0,0.14535089]
[1740983958221,0.45627562,92672.0,92671.0,0.14535089]
[1740983958422,0.47613901,92672.0,92671.0,0.14055089]
[1740983958628,0.80842912,92672.0,92671.0,0.14055089]
[1740983958828,0.89266912,92672.0,92671.0,0.10262167]
[1740983959034,0.445681,92668.0,92651.0,0.0004]
[1740983959332,0.445706,92652.0,92651.0,0.0004]
[1740983959557,0.93543867,92652.0,92651.0,0.0004]
[1740983960503,1.01967867,92652.0,92651.0,0.0004]
[1740983960856,1.01967867,92652.0,92616.0,0.19532878]
[1740983960857,0.01454085,92650.0,92616.0,0.00097978]
[1740983961058,0.01087389,92619.0,92616.0,0.00097978]
[1740983962078,0.24429166,92630.0,92614.0,0.12612001]
[1740983962079,0.01189376,92617.0,92614.0,0.12612001]
[1740983962332,0.01201033,92615.0,92614.0,0.12112001]
[1740983963922,4.004e-05,92617.0,92615.0,0.228064]
[1740983964098,4.004e-05,92617.0,92616.0,0.00151125]
[1740983964534,4.004e-05,92617.0,92615.0,0.228064]
[1740983964713,4.004e-05,92617.0,92615.0,0.22957522]
[1740983965090,4.004e-05,92617.0,92615.0,0.228064]
[1740983968375,0.0119812,92616.0,92615.0,0.0823]
[1740983968578,0.0119812,92616.0,92614.0,0.12112001]
[1740983969020,0.0119812,92616.0,92615.0,0.145764]
[1740983969367,0.0119812,92616.0,92614.0,0.12112001]
[1740983969613,4.004e-05,92617.0,92614.0,0.12112001]
[1740983969614,0.03,92626.0,92614.0,0.12112001]
[1740983969810,0.03,92615.0,92614.0,0.12152305]
[1740983970191,0.175764,92615.0,92614.0,0.12152305]
[1740983970385,0.03,92615.0,92614.0,0.12152305]
[1740983970826,0.03,92622.0,92614.0,0.12152305]
[1740983971233,0.03,92620.0,92614.0,0.12152305]
[1740983971821,0.03,92620.0,92615.0,0.145764]
[1740983972018,0.03,92620.0,92614.0,0.12152305]
[1740983972221,0.03,92623.0,92614.0,0.12152305]
[1740983972424,0.175752,92623.0,92614.0,0.12152305]
[1740983972622,0.03,92621.0,92614.0,0.12152305]
[1740983973029,0.03,92617.0,92614.0,0.12152305]
[1740983974135,0.03,92616.0,92614.0,0.12152305]
[1740983975029,0.03,92621.0,92614.0,0.12152305]
[1740983976047,0.03,92621.0,92614.0,0.12169365]
[1740983976241,0.03,92624.0,92614.0,0.12169365]
[1740983976521,0.145761,92617.0,92614.0,0.12169365]
[1740983976928,0.145764,92615.0,92614.0,0.12169365]
[1740983977121,0.145762,92617.0,92614.0,0.12169365]
[1740983977893,0.145764,92615.0,92614.0,0.12169365]
[1740983978094,0.0852,92619.0,92614.0,0.12169365]
[1740983978295,0.145764,92615.0,92614.0,0.12169365]
[1740983978857,0.08504,92617.0,92614.0,0.12169365]
[1740983979058,0.145764,92615.0,92614.0,0.12169365]
[1740983979731,0.01084605,92620.0,92614.0,0.12169365]
[1740983979939,0.08496,92619.0,92614.0,0.12169365]
[1740983980082,0.24429166,92624.0,92614.0,0.12169365]
[1740983980282,0.08496,92623.0,92614.0,0.12169365]
[1740983980485,0.194338,92622.0,92614.0,0.12169365]
[1740983980844,0.145757,92620.0,92614.0,0.12169365]
[1740983981147,0.004,92620.0,92614.0,0.12169365]
[1740983981472,0.14576,92618.0,92614.0,0.12169365]
[1740983981676,0.08564,92619.0,92614.0,0.12169365]
[1740983982085,0.08576,92618.0,92614.0,0.12169365]
[1740983982299,0.20980144,92616.0,92614.0,0.12169365]
[1740983982432,0.08656,92615.0,92614.0,0.12169365]
[1740983982617,0.20980144,92616.0,92614.0,0.12169365]
[1740983982817,0.08652,92615.0,92614.0,0.12169365]
[1740983983241,0.20980144,92616.0,92614.0,0.12169365]
[1740983983469,0.08672,92615.0,92614.0,0.12169365]
[1740983983856,0.08668,92615.0,92614.0,0.12169365]
[1740983984261,0.20980144,92616.0,92614.0,0.12169365]
[1740983984463,0.08688,92615.0,92614.0,0.12169365]
[1740983984662,0.20980144,92616.0,92614.0,0.12169365]
[1740983985060,0.004,92615.0,92614.0,0.12169365]
[1740983985229,0.09096,92615.0,92614.0,0.12169365]
[1740983985631,0.02381502,92615.0,92614.0,0.12169365]
[1740983986025,0.26657502,92615.0,92614.0,0.12169365]
[1740983986798,0.26257502,92615.0,92614.0,0.12169365]
[1740983987221,0.15584,92615.0,92614.0,0.12169365]
[1740983987422,0.24268,92615.0,92614.0,0.12169365]
[1740983987624,0.15984,92615.0,92614.0,0.12169365]
[1740983988602,0.24664,92615.0,92614.0,0.12169365]
[1740983989853,0.15584,92615.0,92614.0,0.12169365]
[1740983990058,0.15884,92615.0,92614.0,0.12169365]
[1740983990289,0.15884,92615.0,92614.0,0.34295965]
[1740983990646,0.16384,92615.0,92614.0,0.19719365]
[1740983990844,0.16384,92615.0,92614.0,0.34295965]
[1740983991232,0.16384,92615.0,92614.0,0.19719365]
[1740983991428,0.15584,92615.0,92614.0,0.12169365]
[1740983991666,0.15684,92615.0,92614.0,0.12169365]
[1740983993262,0.15584,92615.0,92614.0,0.12169365]
[1740983993875,0.15684,92615.0,92614.0,0.12169365]
[1740983994550,0.15584,92615.0,92614.0,0.12169365]
[1740983994972,0.15884,92615.0,92614.0,0.12169365]
[1740983996007,0.15884,92615.0,92614.0,0.12104435]
[1740983998361,0.08875709,92614.0,92612.0,0.02]
[1740984000755,0.08875709,92614.0,92612.0,0.0201703]
[1740984001080,0.09375709,92614.0,92612.0,0.0201703]
[1740984001815,0.08875709,92614.0,92612.0,0.0201703]
[1740984002208,0.09275709,92614.0,92612.0,0.0201703]
[1740984003594,0.08875709,92614.0,92612.0,0.0201703]
[1740984003981,0.09375709,92614.0,92612.0,0.0201703]
[1740984004586,0.271367,92613.0,92612.0,1e-08]
[1740984004784,0.145786,92601.0,92600.0,0.09535]
[1740984005274,0.269086,92601.0,92600.0,0.09535]
[1740984005592,0.0467,92576.0,92564.0,0.11318517]
[1740984005796,0.24429166,92574.0,92564.0,0.11318517]
[1740984006202,0.25247141,92574.0,92564.0,0.04818517]
[1740984006401,0.3,92573.0,92564.0,0.04818517]
[1740984006576,0.145842,92566.0,92564.0,0.04818517]
[1740984006803,0.09448,92565.0,92564.0,0.04818517]
[1740984007236,0.09488309,92565.0,92564.0,0.04818517]
[1740984007548,0.02185199,92565.0,92564.0,0.04818517]
[1740984007968,0.0208802,92565.0,92564.0,0.03659446]
[1740984008174,0.07249259,92565.0,92564.0,0.03659446]
[1740984008693,0.145854,92558.0,92545.0,0.00614308]
[1740984009100,0.445854,92558.0,92557.0,0.12153391]
[1740984009510,0.0804,92544.0,92529.0,0.07429833]
[1740984009716,0.0804,92544.0,92522.0,0.0001705]
[1740984009717,0.3,92526.0,92525.0,1.94689795]
[1740984009914,0.44688,92526.0,92525.0,1.82926642]
[1740984010114,0.44688,92526.0,92525.0,1.74641117]
[1740984010315,0.445944,92501.0,92500.0,0.48629696]
[1740984011363,0.45692748,92501.0,92500.0,0.48670005]
[1740984011519,0.0251746,92501.0,92500.0,0.47670005]
[1740984011723,0.04483557,92501.0,92500.0,0.47670005]
[1740984011924,0.06598347,92501.0,92500.0,0.47670005]
[1740984012135,0.05499999,92501.0,92500.0,0.47670005]
[1740984012414,0.14333209,92501.0,92500.0,0.47670005]
[1740984012624,0.15441568,92501.0,92500.0,0.4441663]
[1740984013021,0.50589568,92501.0,92462.0,0.0253425]
[1740984013226,0.145971,92484.0,92462.0,0.0253425]
[1740984013830,0.44065111,92500.0,92462.0,0.0253425]
[1740984014083,0.145976,92481.0,92462.0,0.0253425]
[1740984014315,0.05101125,92484.0,92462.0,0.0253425]
[1740984014528,0.08875709,92483.0,92482.0,0.145974]
[1740984015063,0.10841806,92483.0,92482.0,0.145974]
[1740984015407,0.10841806,92483.0,92476.0,0.0798]
[1740984015608,0.10841806,92483.0,92481.0,0.145974]
[1740984015809,0.10841806,92483.0,92478.0,0.00151365]
[1740984015948,0.10841806,92483.0,92477.0,0.00941171]
[1740984016153,0.05095698,92482.0,92477.0,0.00941171]
[1740984016799,0.05095698,92482.0,92481.0,0.145975]
[1740984017089,0.194634,92481.0,92473.0,0.00151379]
[1740984017287,0.145988,92473.0,92472.0,0.0141468]
[1740984017646,0.445988,92473.0,92472.0,0.0141468]
[1740984017825,0.3,92473.0,92472.0,0.0141468]
[1740984018027,0.3,92473.0,92472.0,0.0091468]
[1740984018831,0.3,92472.0,92463.0,0.00062467]
[1740984019031,0.3,92472.0,92426.0,0.146062]
[1740984019231,0.36846169,92450.0,92425.0,0.12771533]
[1740984019597,0.36846169,92460.0,92425.0,0.12771533]
[1740984019730,0.01042494,92431.0,92430.0,0.146056]
[1740984019934,0.01042494,92431.0,92430.0,0.446056]
[1740984020142,0.12291978,92449.0,92426.0,0.128]
[1740984020331,0.12291978,92449.0,92447.0,0.146029]
[1740984020535,0.12291978,92449.0,92429.0,0.05]
[1740984020902,0.08875709,92483.0,92440.0,0.20508511]
[1740984021104,0.00040235,92449.0,92442.0,0.0497]
[1740984021235,0.00040235,92449.0,92448.0,0.146028]
[1740984021439,0.00040235,92449.0,92448.0,0.22634199]
[1740984021761,0.08875709,92483.0,92482.0,0.145974]
[1740984021991,0.08875709,92483.0,92482.0,0.1605714]
[1740984022165,0.08875709,92483.0,92450.0,0.41846169]
[1740984022367,0.08875709,92483.0,92451.0,0.3236]
[1740984022543,0.08875709,92483.0,92448.0,0.1702947]
[1740984022951,0.08875709,92483.0,92448.0,0.0914947]
[1740984022952,0.39046088,92480.0,92448.0,0.0914947]
[1740984023279,0.36846169,92470.0,92448.0,0.09153474]
[1740984023480,0.0456,92477.0,92448.0,0.09153474]
[1740984023733,0.02219445,92469.0,92449.0,0.01989015]
[1740984023891,0.146014,92457.0,92449.0,0.01989015]
[1740984024086,0.194684,92458.0,92449.0,0.01989015]
[1740984024289,0.194682,92458.0,92449.0,0.01989015]
[1740984024558,0.3,92457.0,92449.0,0.01989015]
[1740984024761,0.02181478,92464.0,92449.0,0.01989015]
[1740984024909,0.44696169,92480.0,92449.0,0.01989015]
[1740984025097,0.36846169,92470.0,92448.0,4.004e-05]
[1740984025297,0.3,92459.0,92448.0,4.004e-05]
[1740984025713,0.3,92457.0,92448.0,4.004e-05]
[1740984025912,0.0215002,92467.0,92448.0,4.004e-05]
[1740984026093,0.0456,92477.0,92453.0,0.146018]
[1740984026295,0.0456,92477.0,92448.0,4.004e-05]
[1740984026296,0.08909829,92483.0,92448.0,4.004e-05]
[1740984026717,0.36846169,92470.0,92448.0,4.004e-05]
[1740984026954,0.36846169,92460.0,92448.0,4.004e-05]
[1740984027289,0.194682,92458.0,92448.0,4.004e-05]
[1740984027493,0.3,92450.0,92448.0,4.004e-05]
[1740984027697,0.0097521,92449.0,92448.0,4.004e-05]
[1740984027965,0.4097521,92449.0,92448.0,4.004e-05]
[1740984028230,0.53320939,92449.0,92448.0,4.004e-05]
[1740984028419,0.05,92445.0,92425.0,0.10275536]
[1740984028547,0.31057123,92426.0,92425.0,0.10275536]
[1740984029178,0.35807123,92426.0,92425.0,0.10275536]
[1740984029338,0.35807123,92426.0,92400.0,0.00141]
[1740984029339,0.146083,92413.0,92400.0,0.00141]
[1740984029552,0.03319491,92413.0,92393.0,7e-05]
[1740984029759,0.01238593,92396.0,92393.0,0.146184]
[1740984029961,0.01238593,92396.0,92394.0,0.146112]
[1740984030399,0.01238593,92396.0,92393.0,7e-05]
[1740984030779,0.01250641,92396.0,92393.0,7e-05]
[1740984031552,0.196113,92394.0,92393.0,7e-05]
[1740984031755,0.31797173,92394.0,92393.0,7e-05]
[1740984031901,0.31294229,92394.0,92393.0,7e-05]
[1740984032305,0.56897249,92390.0,92373.0,0.25371976]
[1740984032485,0.18993665,92396.0,92373.0,0.25371976]
[1740984032486,0.01358664,92374.0,92373.0,0.25371976]
[1740984032690,0.01358664,92374.0,92373.0,0.44476599]
[1740984033091,0.01358664,92374.0,92373.0,0.44266599]
[1740984033388,0.01358664,92374.0,92373.0,0.39526576]
[1740984033777,0.01358664,92374.0,92373.0,0.41523065]
[1740984034785,0.00012048,92396.0,92395.0,0.146111]
[1740984035010,0.01300421,92396.0,92395.0,0.146111]
[1740984035213,0.00012048,92396.0,92395.0,0.23825185]
[1740984035415,0.00012048,92396.0,92395.0,0.30104124]
[1740984035615,0.01300421,92396.0,92395.0,0.28650039]
[1740984035881,0.01300421,92396.0,92375.0,0.194857]
[1740984036085,0.01346948,92395.0,92378.0,0.05]
[1740984036232,0.01346948,92395.0,92394.0,0.146113]
[1740984036422,0.00012048,92396.0,92395.0,0.01454085]
[1740984036782,0.01300421,92396.0,92395.0,0.0791149]
[1740984036932,0.01300421,92396.0,92395.0,0.13908739]
[1740984037336,0.01300421,92396.0,92395.0,0.13408739]
[1740984037559,0.00012048,92396.0,92395.0,0.14862824]
[1740984037718,0.00012048,92396.0,92395.0,0.15014317]
[1740984037918,0.00012048,92396.0,92395.0,0.14862824]
[1740984038324,0.00012048,92396.0,92395.0,0.15014314]
[1740984038565,0.00012048,92396.0,92395.0,0.24240023]
[1740984038806,0.00012048,92396.0,92395.0,0.29010023]
[1740984038965,0.00012048,92396.0,92395.0,0.28858533]
[1740984039691,0.00012048,92396.0,92395.0,0.22709794]
[1740984039900,0.00012048,92396.0,92395.0,0.21255709]
[1740984040106,0.0003416,92413.0,92411.0,0.146086]
[1740984040308,0.10070387,92412.0,92411.0,0.146086]
[1740984040887,0.10070387,92412.0,92395.0,0.21295944]
[1740984041137,0.01241522,92411.0,92396.0,0.02129594]
[1740984041340,0.01241522,92411.0,92409.0,0.146089]
[1740984041543,0.0120346,92410.0,92396.0,0.07344125]
[1740984041781,0.01238593,92405.0,92396.0,0.07344125]
[1740984041928,0.01238593,92405.0,92396.0,0.05214531]
[1740984042170,0.0125909,92400.0,92396.0,0.05214531]
[1740984042344,0.01273731,92397.0,92396.0,0.05214531]
[1740984042768,0.01273731,92397.0,92396.0,0.19825531]
[1740984043170,0.01273731,92397.0,92395.0,0.00040235]
[1740984043372,0.08875709,92412.0,92395.0,0.00040235]
[1740984043373,0.01285443,92396.0,92395.0,0.00040235]
[1740984046598,0.08835474,92395.0,92371.0,0.00041758]
[1740984046801,0.01355736,92374.0,92371.0,0.00041758]
[1740984049565,0.31355736,92374.0,92373.0,0.19594179]
[1740984050173,0.45970236,92374.0,92373.0,0.19594179]
[1740984050374,0.31355736,92374.0,92373.0,0.19594179]
[1740984050574,0.45970236,92374.0,92373.0,0.19594179]
[1740984050810,0.31355736,92374.0,92373.0,0.16338466]
[1740984051397,0.32161443,92374.0,92373.0,0.16338466]
[1740984052144,0.31355736,92374.0,92373.0,0.16338466]
[1740984053903,0.31355736,92374.0,92373.0,0.13082753]
[1740984054108,0.45970236,92374.0,92373.0,0.13082753]
[1740984054327,0.45970236,92374.0,92373.0,0.06904205]
[1740984054533,0.67724835,92374.0,92373.0,0.06904205]
[1740984054692,0.53650236,92374.0,92373.0,0.06904205]
[1740984054911,0.39035736,92374.0,92373.0,0.03646625]
[1740984055111,0.31355736,92374.0,92373.0,0.03646625]
[1740984055402,0.31355736,92374.0,92373.0,0.00389045]
[1740984055578,0.01355736,92374.0,92373.0,0.00389045]
[1740984058067,0.02055736,92374.0,92373.0,0.00189045]
[1740984058467,0.02055736,92374.0,92373.0,0.00089045]
[1740984058667,0.01355736,92374.0,92373.0,0.00089045]
[1740984059588,0.01355736,92374.0,92345.0,0.01333333]
[1740984059789,0.01452415,92362.0,92345.0,0.01333333]
[1740984060509,0.01452415,92362.0,92361.0,0.14725053]
[1740984060650,0.01452415,92362.0,92361.0,0.03531734]
[1740984060848,0.01452415,92362.0,92361.0,0.00108553]
[1740984061054,0.01492744,92362.0,92361.0,0.00108553]
[1740984061493,0.02192744,92362.0,92361.0,0.00108553]
[1740984061973,0.01492744,92362.0,92361.0,0.00108553]
[1740984062196,0.01492744,92362.0,92345.0,0.01333333]
[1740984062197,0.08726921,92361.0,92345.0,0.01333333]
[1740984062429,0.01508095,92356.0,92345.0,0.01333333]
[1740984063921,0.16125395,92356.0,92345.0,0.01333333]
[1740984064108,0.52017635,92356.0,92345.0,0.01333333]
[1740984064320,0.31508095,92356.0,92345.0,0.01333333]
[1740984064540,0.32340226,92356.0,92345.0,0.01333333]
[1740984064937,0.33040226,92356.0,92345.0,0.01333333]
[1740984065152,0.47657526,92356.0,92345.0,0.01333333]
[1740984065589,0.46957526,92356.0,92345.0,0.01333333]
[1740984065764,0.33040226,92356.0,92345.0,0.01333333]
[1740984066809,0.02208095,92356.0,92345.0,0.01333333]
[1740984066993,0.02208095,92356.0,92345.0,0.01285393]
[1740984067190,0.01552062,92346.0,92345.0,0.01285393]
[1740984067449,0.01480328,92346.0,92345.0,0.15904393]
[1740984067662,0.01480328,92346.0,92345.0,0.29383392]
[1740984067864,0.01480328,92346.0,92345.0,0.14764392]
[1740984067998,0.01480328,92346.0,92345.0,0.01285393]
[1740984068659,0.01480328,92346.0,92345.0,0.15904393]
[1740984068904,0.01480328,92346.0,92345.0,0.01285393]
[1740984069112,0.01780328,92346.0,92345.0,0.01285393]
[1740984069280,0.01780328,92346.0,92345.0,0.03363242]
[1740984069577,0.01780328,92346.0,92345.0,0.17982242]
[1740984069778,0.01780328,92346.0,92345.0,0.25732242]
[1740984070345,0.01780328,92346.0,92345.0,0.09035393]
[1740984070597,0.01780328,92346.0,92345.0,0.23654393]
[1740984071241,0.01780328,92346.0,92345.0,0.09035393]
[1740984071410,0.01480328,92346.0,92345.0,0.09035393]
[1740984071554,0.01480328,92346.0,92345.0,0.01285393]
[1740984071757,0.01480328,92346.0,92345.0,0.15904393]
[1740984072093,0.08726921,92361.0,92360.0,0.146167]
[1740984072292,0.10148629,92361.0,92360.0,0.225967]
[1740984072789,0.08726921,92361.0,92360.0,0.218967]
[1740984073197,0.08726921,92361.0,92360.0,0.52048259]
[1740984073374,0.00074489,92362.0,92361.0,0.492065]
[1740984073578,0.09357993,92405.0,92395.0,0.146111]
[1740984073925,0.01250779,92396.0,92395.0,0.146111]
[1740984074629,0.0003414,92396.0,92395.0,0.139111]
[1740984074836,0.0003414,92396.0,92395.0,0.439111]
[1740984075069,0.0003414,92396.0,92395.0,0.489111]
[1740984075200,0.0003414,92396.0,92395.0,0.56589507]
[1740984075403,0.0073414,92396.0,92395.0,1.23316602]
[1740984075603,0.09357993,92405.0,92404.0,0.574797]
[1740984075846,0.36947195,92470.0,92412.0,0.56062485]
[1740984076021,0.36947195,92470.0,92412.0,0.63932485]
[1740984076224,0.36947195,92460.0,92412.0,0.7537959]
[1740984076440,0.36947195,92470.0,92412.0,1.50343275]
[1740984076603,0.36947195,92470.0,92428.0,0.05]
[1740984076807,0.36947195,92470.0,92447.0,0.194706]
[1740984077125,0.36947195,92470.0,92428.0,0.3736]
[1740984077126,0.36947195,92470.0,92448.0,0.05982798]
[1740984077287,0.36947195,92470.0,92451.0,0.146022]
[1740984077523,0.02156487,92475.0,92452.0,0.03133715]
[1740984077724,0.09460066,92462.0,92453.0,0.17383982]
[1740984077923,0.09460066,92462.0,92454.0,0.03133715]
[1740984078144,0.09460066,92462.0,92454.0,0.05915797]
[1740984078409,0.09460066,92462.0,92454.0,0.12699924]
[1740984078547,0.09460066,92462.0,92454.0,0.05915797]
[1740984079348,0.09460066,92462.0,92454.0,0.03133715]
[1740984079551,0.09460066,92462.0,92454.0,0.32782082]
[1740984079762,0.09460066,92462.0,92454.0,0.38089413]
[1740984080126,0.00074514,92455.0,92454.0,1.09870838]
[1740984080271,0.00074514,92455.0,92454.0,1.06781425]
[1740984081097,0.00074514,92455.0,92454.0,1.01781425]
[1740984081480,0.00074514,92455.0,92454.0,0.9711831]
[1740984081675,0.00074514,92455.0,92454.0,0.94179983]
[1740984082026,0.00074514,92455.0,92447.0,0.0776]
[1740984082223,0.00074514,92455.0,92436.0,0.3236]
[1740984082427,0.00074514,92455.0,92445.0,0.146032]
[1740984082679,0.00074514,92455.0,92436.0,0.30457847]
[1740984082881,0.00074514,92455.0,92442.0,0.194714]
[1740984083181,0.00074514,92455.0,92436.0,0.30457847]
[1740984083329,0.00074514,92455.0,92431.0,0.0779]
[1740984083706,0.56782239,92450.0,92403.0,0.0762]
[1740984083915,0.01035136,92431.0,92416.0,0.146077]
[1740984084144,0.01035136,92431.0,92403.0,0.39339983]
[1740984084312,0.01035136,92431.0,92421.0,0.14607]
[1740984084499,0.01035136,92431.0,92422.0,0.014607]
[1740984084907,0.01035136,92431.0,92403.0,0.39339983]
[1740984085171,0.01035136,92431.0,92422.0,0.146067]
[1740984085373,0.01035136,92431.0,92423.0,0.146066]
[1740984085549,0.01035136,92431.0,92404.0,0.3]
[1740984085550,0.01035136,92431.0,92421.0,0.146069]
[1740984085912,0.01038062,92423.0,92414.0,0.146081]
[1740984086116,0.01038062,92423.0,92415.0,0.0146081]
[1740984086473,0.01038062,92423.0,92413.0,0.194776]
[1740984086634,0.01038062,92423.0,92404.0,0.494796]
[1740984086836,0.01038062,92423.0,92405.0,0.30151476]
[1740984087036,0.01038062,92423.0,92418.0,0.146075]
[1740984087363,0.01038062,92423.0,92420.0,0.194761]
[1740984087571,0.01038062,92423.0,92421.0,0.1655451]
[1740984088413,0.0003416,92455.0,92442.0,0.146037]
[1740984088581,0.0003416,92455.0,92449.0,0.146026]
[1740984088582,0.00012104,92450.0,92449.0,0.146026]
[1740984088777,0.00012104,92450.0,92449.0,0.1606286]
[1740984089244,0.00012104,92450.0,92449.0,0.16214266]
[1740984089539,0.00012104,92450.0,92449.0,0.1606286]
[1740984089900,0.00012104,92450.0,92449.0,0.1616286]
[1740984090120,0.00012104,92450.0,92449.0,0.0156026]
[1740984090437,0.00012104,92450.0,92449.0,0.001]
[1740984091534,0.00012104,92450.0,92435.0,0.194731]
[1740984091718,0.00012104,92450.0,92436.0,0.00151441]
[1740984091983,0.00012104,92450.0,92438.0,0.194723]
[1740984092195,0.00012104,92450.0,92413.0,0.35]
[1740984092323,0.01005872,92446.0,92444.0,0.146033]
[1740984092522,0.00012104,92450.0,92416.0,0.3]
[1740984092755,0.00997094,92446.0,92445.0,0.146032]
[1740984092957,0.00012104,92450.0,92449.0,0.146026]
[1740984093398,0.00012104,92450.0,92448.0,0.146027]
[1740984093574,0.00012104,92450.0,92448.0,0.0146027]
[1740984093784,0.00012104,92450.0,92418.0,0.3]
[1740984093954,0.00991242,92446.0,92420.0,0.3]
[1740984094168,0.00997094,92432.0,92419.0,0.31719983]
[1740984094352,0.00997094,92432.0,92429.0,0.146057]
[1740984094551,0.00997094,92432.0,92431.0,0.146054]
[1740984094780,0.00997094,92432.0,92431.0,0.14756856]
[1740984094979,0.00997094,92432.0,92431.0,0.146054]
[1740984096274,0.00997094,92432.0,92431.0,0.14756836]
[1740984096501,0.00012104,92450.0,92449.0,0.146026]
[1740984096680,0.00012104,92450.0,92449.0,0.1606286]
[1740984097073,0.00012104,92450.0,92449.0,0.0146026]
[1740984097279,0.00012104,92450.0,92434.0,0.51193183]
[1740984097478,0.00012104,92450.0,92443.0,0.146035]
[1740984097693,0.00012104,92450.0,92434.0,0.31719983]
[1740984097901,0.00012104,92450.0,92435.0,0.1962454]
[1740984098102,0.00012104,92450.0,92434.0,0.31719983]
[1740984098304,0.00012104,92450.0,92439.0,0.146041]
[1740984098659,0.56794343,92450.0,92434.0,0.31719983]
[1740984098860,0.00012104,92450.0,92434.0,0.31719983]
[1740984099100,0.00012104,92450.0,92436.0,0.146046]
[1740984099264,0.00012104,92450.0,92434.0,0.31719983]
[1740984099438,0.00012104,92450.0,92435.0,0.05119378]
[1740984099763,0.00512104,92450.0,92439.0,0.001]
[1740984100227,0.00012104,92450.0,92435.0,0.05119378]
[1740984100401,0.00512104,92450.0,92449.0,0.146026]
[1740984100561,0.00512104,92450.0,92449.0,0.16089669]
[1740984100768,0.00512104,92450.0,92436.0,0.001]
[1740984100963,0.57294343,92450.0,92436.0,0.001]
[1740984101653,0.57294343,92450.0,92430.0,0.19474]
[1740984101862,0.56794343,92450.0,92431.0,0.146054]
[1740984102096,0.57194343,92450.0,92439.0,0.001]
[1740984102245,0.146038,92442.0,92439.0,0.001]
[1740984102566,0.146038,92442.0,92420.0,0.0001707]
[1740984102567,0.01454085,92447.0,92420.0,0.0001707]
[1740984102780,0.00994168,92427.0,92426.0,0.146062]
[1740984103019,0.00994168,92427.0,92426.0,0.03409907]